[Event "*** Qualifier 1: Titled Tuesday 3|2 Blitz"]
[Site "Chess.com"]
[Date "2017.04.04"]
[Round "3"]
[White "Usurpov"]
[Black "twitchTriniCupid"]
[Result "0-1"]
[WhiteElo "2252"]
[BlackElo "2156"]
[TimeControl "180+2"]
[EndTime "13:39:39 PDT"]
[Termination "twitchTriniCupid won by resignation"]

1. e4 {[%clk 0:03:02]} 1... c6 {[%clk 0:03:00.5]} 2. d4 {[%clk 0:03:02.2]} 2...
d5 {[%clk 0:03:01.8]} 3. Nc3 {[%clk 0:03:03.8]} 3... dxe4 {[%clk 0:03:02.8]} 4.
Nxe4 {[%clk 0:03:05.7]} 4... Bf5 {[%clk 0:03:04.1]} 5. Ng3 {[%clk 0:03:06.6]}
5... Bg6 {[%clk 0:03:05.4]} 6. Nf3 {[%clk 0:03:08.1]} 6... Nd7 {[%clk
0:03:06.2]} 7. h4 {[%clk 0:03:09.7]} 7... h6 {[%clk 0:03:07.5]} 8. h5 {[%clk
0:03:11.3]} 8... Bh7 {[%clk 0:03:08.9]} 9. Bd3 {[%clk 0:03:12.9]} 9... Bxd3
{[%clk 0:03:10.1]} 10. Qxd3 {[%clk 0:03:14.8]} 10... e6 {[%clk 0:03:10.7]} 11.
Bd2 {[%clk 0:03:16.4]} 11... Ngf6 {[%clk 0:03:12.1]} 12. Ne4 {[%clk 0:03:16.8]}
12... Be7 {[%clk 0:03:12.1]} 13. O-O-O {[%clk 0:03:17.3]} 13... O-O {[%clk
0:03:12.7]} 14. Kb1 {[%clk 0:03:11.5]} 14... Nxe4 {[%clk 0:03:13.1]} 15. Qxe4
{[%clk 0:03:13.4]} 15... Nf6 {[%clk 0:03:13.8]} 16. Qe2 {[%clk 0:03:14.2]} 16...
Qd5 {[%clk 0:03:14.3]} 17. Ne5 {[%clk 0:03:12.2]} 17... Qe4 {[%clk 0:03:11.7]}
18. Be3 {[%clk 0:03:05.3]} 18... Nd5 {[%clk 0:03:12.2]} 19. Rhe1 {[%clk
0:02:40.7]} 19... c5 {[%clk 0:02:56.7]} 20. Qf1 {[%clk 0:02:28.1]} 20... cxd4
{[%clk 0:02:44.7]} 21. Bxd4 {[%clk 0:02:30]} 21... Qf5 {[%clk 0:02:20.8]} 22. g4
{[%clk 0:02:23]} 22... Qf4 {[%clk 0:02:21.6]} 23. Qg2 {[%clk 0:02:13.9]} 23...
Rac8 {[%clk 0:01:34.6]} 24. c4 {[%clk 0:01:58.3]} 24... Nf6 {[%clk 0:01:28.2]}
25. Bc3 {[%clk 0:01:42.2]} 25... Bc5 {[%clk 0:01:08.5]} 26. Qxb7 {[%clk
0:01:27.8]} 26... Bxf2 {[%clk 0:01:08.8]} 27. Re2 {[%clk 0:01:25]} 27... Bc5
{[%clk 0:00:47.4]} 28. Qf3 {[%clk 0:01:07.2]} 28... Qxf3 {[%clk 0:00:39.5]} 29.
Nxf3 {[%clk 0:01:09.1]} 29... Nxg4 {[%clk 0:00:37.6]} 30. b4 {[%clk 0:01:03.1]}
30... Be3 {[%clk 0:00:32.4]} 31. c5 {[%clk 0:00:56.6]} 31... Rfd8 {[%clk
0:00:32.6]} 32. Rde1 {[%clk 0:00:50.1]} 32... Bf2 {[%clk 0:00:25.3]} 33. Rf1
{[%clk 0:00:49.3]} 33... Be3 {[%clk 0:00:24]} 34. Rfe1 {[%clk 0:00:27.2]} 34...
Bf2 {[%clk 0:00:18.2]} 35. Rf1 {[%clk 0:00:27]} 35... Be3 {[%clk 0:00:18.9]} 36.
Rg2 {[%clk 0:00:20.7]} 36... f5 {[%clk 0:00:19.2]} 37. Re2 {[%clk 0:00:21.8]}
37... Rd5 {[%clk 0:00:19.1]} 38. Kc2 {[%clk 0:00:23]} 38... Rcd8 {[%clk
0:00:19.6]} 39. Rfe1 {[%clk 0:00:23.4]} 39... f4 {[%clk 0:00:16.8]} 40. Rf1
{[%clk 0:00:23.7]} 40... e5 {[%clk 0:00:16.2]} 41. Rfe1 {[%clk 0:00:19.9]} 41...
e4 {[%clk 0:00:16.8]} 42. Nh4 {[%clk 0:00:20.7]} 42... Rxh5 {[%clk 0:00:16.1]}
43. Ng6 {[%clk 0:00:21.4]} 43... Kf7 {[%clk 0:00:15.8]} 44. Rg2 {[%clk
0:00:18.9]} 44... Kxg6 {[%clk 0:00:14.9]} 45. Rxg4+ {[%clk 0:00:19.6]} 45... Kf5
{[%clk 0:00:16.2]} 46. Rxg7 {[%clk 0:00:21.2]} 46... Rh2+ {[%clk 0:00:16.9]} 47.
Kb3 {[%clk 0:00:22.9]} 47... a5 {[%clk 0:00:16.5]} 48. a3 {[%clk 0:00:22.1]}
48... axb4 {[%clk 0:00:17.1]} 49. axb4 {[%clk 0:00:24]} 49... Rd3 {[%clk
0:00:17.3]} 50. Rf7+ {[%clk 0:00:23.6]} 50... Ke6 {[%clk 0:00:17.7]} 51. Rf6+
{[%clk 0:00:24.4]} 51... Ke7 {[%clk 0:00:17.3]} 52. Rf5 {[%clk 0:00:25.7]} 52...
Rxc3+ {[%clk 0:00:16.7]} 53. Kxc3 {[%clk 0:00:26.5]} 53... Bd2+ {[%clk
0:00:18.3]} 54. Kc4 {[%clk 0:00:28.4]} 54... Bxe1 {[%clk 0:00:19.7]} 55. Re5+
{[%clk 0:00:30.3]} 55... Kf6 {[%clk 0:00:19]} 56. Rxe4 {[%clk 0:00:31.7]} 56...
Bg3 {[%clk 0:00:16.5]} 57. c6 {[%clk 0:00:32.8]} 57... Kf5 {[%clk 0:00:15.8]}
58. Re8 {[%clk 0:00:29.7]} 58... f3 {[%clk 0:00:16]} 59. Rf8+ {[%clk 0:00:31]}
59... Kg4 {[%clk 0:00:17.1]} 60. Rg8+ {[%clk 0:00:31.3]} 60... Kh3 {[%clk
0:00:18]} 61. Kc3 {[%clk 0:00:32.5]} 61... Rh1 {[%clk 0:00:17.6]} 62. Kd2 {[%clk
0:00:32.6]} 62... f2 {[%clk 0:00:15.6]} 63. Rxg3+ {[%clk 0:00:30.7]} 63... Kxg3
{[%clk 0:00:16.3]} 64. c7 {[%clk 0:00:32.6]} 64... f1=Q {[%clk 0:00:14]} 65.
c8=Q {[%clk 0:00:32.7]} 65... Qf4+ {[%clk 0:00:15]} 0-1

[Event "*** Qualifier 1: Titled Tuesday 3|2 Blitz"]
[Site "Chess.com"]
[Date "2017.04.04"]
[Round "3"]
[White "VerdeNotte"]
[Black "TenisMaster"]
[Result "0-1"]
[WhiteElo "2575"]
[BlackElo "2655"]
[TimeControl "180+2"]
[EndTime "13:39:45 PDT"]
[Termination "TenisMaster won by resignation"]

1. g3 {[%clk 0:03:02]} 1... d5 {[%clk 0:02:59.6]} 2. Nf3 {[%clk 0:03:03]} 2...
c6 {[%clk 0:02:59]} 3. Bg2 {[%clk 0:03:03.9]} 3... Bg4 {[%clk 0:02:59.6]} 4. b3
{[%clk 0:03:04.9]} 4... Nd7 {[%clk 0:02:58.7]} 5. Bb2 {[%clk 0:03:05.7]} 5...
Ngf6 {[%clk 0:02:58.9]} 6. O-O {[%clk 0:03:04]} 6... e6 {[%clk 0:02:59.2]} 7. d3
{[%clk 0:03:05]} 7... Be7 {[%clk 0:02:51.8]} 8. Nbd2 {[%clk 0:03:04.1]} 8... O-O
{[%clk 0:02:52.4]} 9. Qe1 {[%clk 0:03:01.2]} 9... a5 {[%clk 0:02:52.2]} 10. a4
{[%clk 0:02:57.9]} 10... b5 {[%clk 0:02:27.6]} 11. Nd4 {[%clk 0:02:49.4]} 11...
Qb6 {[%clk 0:02:26.6]} 12. h3 {[%clk 0:02:42.7]} 12... Bh5 {[%clk 0:02:26.1]}
13. e4 {[%clk 0:02:42.3]} 13... Bc5 {[%clk 0:02:18.8]} 14. N2f3 {[%clk
0:02:30.2]} 14... dxe4 {[%clk 0:02:07.9]} 15. dxe4 {[%clk 0:02:31.1]} 15... Bg6
{[%clk 0:02:07.9]} 16. e5 {[%clk 0:02:19]} 16... Nd5 {[%clk 0:02:08.7]} 17. Qd2
{[%clk 0:02:11.1]} 17... Rfd8 {[%clk 0:02:04.8]} 18. axb5 {[%clk 0:01:57.9]}
18... cxb5 {[%clk 0:02:04.9]} 19. c4 {[%clk 0:01:59.1]} 19... bxc4 {[%clk
0:02:01]} 20. bxc4 {[%clk 0:01:59.9]} 20... Nb4 {[%clk 0:01:53.2]} 21. Bc3
{[%clk 0:01:39]} 21... Rac8 {[%clk 0:01:46.8]} 22. Rfe1 {[%clk 0:01:20.9]} 22...
Nb8 {[%clk 0:01:38.6]} 23. Qg5 {[%clk 0:01:12]} 23... N8c6 {[%clk 0:01:14.6]}
24. Nxc6 {[%clk 0:01:10.6]} 24... Bxf2+ {[%clk 0:01:15.6]} 25. Kh2 {[%clk
0:01:07.6]} 25... Nxc6 {[%clk 0:01:16.5]} 26. Re2 {[%clk 0:00:54.9]} 26... h6
{[%clk 0:01:14.9]} 27. Qg4 {[%clk 0:00:51.9]} 27... Bc5 {[%clk 0:01:06.7]} 28.
Nh4 {[%clk 0:00:44.9]} 28... Bd3 {[%clk 0:01:03.1]} 29. Rb2 {[%clk 0:00:45.5]}
29... Nb4 {[%clk 0:00:59.2]} 30. Bd2 {[%clk 0:00:41.7]} 30... Rd4 {[%clk
0:00:53.7]} 31. Qh5 {[%clk 0:00:38.6]} 31... Rxc4 {[%clk 0:00:47]} 32. Ra3
{[%clk 0:00:36.1]} 32... Rd8 {[%clk 0:00:39.5]} 33. Bxh6 {[%clk 0:00:31.6]}
33... gxh6 {[%clk 0:00:39.4]} 34. Qxh6 {[%clk 0:00:32.5]} 34... Bf8 {[%clk
0:00:38.4]} 35. Qg5+ {[%clk 0:00:32.2]} 35... Bg7 {[%clk 0:00:39.5]} 36. Rd2
{[%clk 0:00:31.8]} 36... Rcd4 {[%clk 0:00:38.8]} 37. Nf3 {[%clk 0:00:28.4]}
37... R4d5 {[%clk 0:00:37.1]} 38. Qf4 {[%clk 0:00:15.6]} 38... Qc7 {[%clk
0:00:35.3]} 39. Qh4 {[%clk 0:00:14.7]} 39... Bg6 {[%clk 0:00:31]} 40. Rf2 {[%clk
0:00:15.7]} 40... Nd3 {[%clk 0:00:29.8]} 41. Rf1 {[%clk 0:00:15.9]} 41... Nxe5
{[%clk 0:00:30.5]} 42. Nxe5 {[%clk 0:00:13.9]} 42... Rxe5 {[%clk 0:00:30]} 43.
Rc3 {[%clk 0:00:14.9]} 43... Qd7 {[%clk 0:00:27.5]} 44. Rcc1 {[%clk 0:00:11.7]}
44... Rh5 {[%clk 0:00:28.1]} 45. Qf4 {[%clk 0:00:12.3]} 45... Qd6 {[%clk
0:00:26.8]} 46. Rc8 {[%clk 0:00:11.2]} 46... Be5 {[%clk 0:00:23.8]} 47. Rxd8+
{[%clk 0:00:11.9]} 47... Qxd8 {[%clk 0:00:25.7]} 48. Qg4 {[%clk 0:00:13.2]}
48... Rg5 {[%clk 0:00:25.5]} 49. Qe2 {[%clk 0:00:12.8]} 49... Bxg3+ {[%clk
0:00:25.8]} 50. Kh1 {[%clk 0:00:14.4]} 50... Qd3 {[%clk 0:00:24.8]} 51. Qa2
{[%clk 0:00:14.6]} 51... Be5 {[%clk 0:00:23.7]} 52. Rf3 {[%clk 0:00:10.6]} 52...
Qd1+ {[%clk 0:00:22.2]} 53. Rf1 {[%clk 0:00:11.2]} 53... Qc2 {[%clk 0:00:20.8]}
54. Rf2 {[%clk 0:00:04.9]} 54... Qxa2 {[%clk 0:00:19]} 55. Rxa2 {[%clk
0:00:06.8]} 55... Bc3 {[%clk 0:00:20]} 56. h4 {[%clk 0:00:06.2]} 56... Rg4
{[%clk 0:00:19.5]} 57. h5 {[%clk 0:00:06.3]} 57... Rh4+ {[%clk 0:00:18.3]} 58.
Kg1 {[%clk 0:00:07]} 58... Rxh5 {[%clk 0:00:18.8]} 59. Ra3 {[%clk 0:00:05.6]}
59... Bb4 {[%clk 0:00:19.7]} 60. Ra2 {[%clk 0:00:06.9]} 60... Rc5 {[%clk
0:00:20.9]} 61. Kh2 {[%clk 0:00:07.5]} 61... Rc2 {[%clk 0:00:21.9]} 62. Ra1
{[%clk 0:00:07.5]} 62... Be4 {[%clk 0:00:21.8]} 0-1

[Event "*** Qualifier 1: Titled Tuesday 3|2 Blitz"]
[Site "Chess.com"]
[Date "2017.04.04"]
[Round "3"]
[White "Swarajan"]
[Black "alturas_pacificas"]
[Result "0-1"]
[WhiteElo "1911"]
[BlackElo "2048"]
[TimeControl "180+2"]
[EndTime "13:40:16 PDT"]
[Termination "alturas_pacificas won by checkmate"]

1. d4 {[%clk 0:03:02]} 1... d5 {[%clk 0:03:00.5]} 2. c4 {[%clk 0:03:01.9]} 2...
c6 {[%clk 0:03:01.3]} 3. Nf3 {[%clk 0:03:01.9]} 3... Nf6 {[%clk 0:03:01.9]} 4.
Nc3 {[%clk 0:03:02.5]} 4... e6 {[%clk 0:03:03]} 5. Bg5 {[%clk 0:03:03]} 5...
dxc4 {[%clk 0:03:03.9]} 6. e4 {[%clk 0:03:02.1]} 6... b5 {[%clk 0:03:05.3]} 7.
e5 {[%clk 0:03:03.2]} 7... h6 {[%clk 0:03:06.8]} 8. Bh4 {[%clk 0:03:04.4]} 8...
g5 {[%clk 0:03:08.4]} 9. Nxg5 {[%clk 0:03:05.5]} 9... Nd5 {[%clk 0:03:09.7]} 10.
Nxd5 {[%clk 0:02:46]} 10... cxd5 {[%clk 0:02:47.4]} 11. Nf3 {[%clk 0:02:29.5]}
11... Bb4+ {[%clk 0:02:42.9]} 12. Ke2 {[%clk 0:02:24.5]} 12... Be7 {[%clk
0:02:37.1]} 13. Bxe7 {[%clk 0:02:23.3]} 13... Qxe7 {[%clk 0:02:39]} 14. a3
{[%clk 0:02:23.6]} 14... Nc6 {[%clk 0:02:35.9]} 15. g3 {[%clk 0:02:23.6]} 15...
a5 {[%clk 0:02:32.7]} 16. Bg2 {[%clk 0:02:20.8]} 16... b4 {[%clk 0:02:29.2]} 17.
axb4 {[%clk 0:02:17.2]} 17... Qxb4 {[%clk 0:02:28.1]} 18. Qc2 {[%clk 0:02:14.2]}
18... Ba6 {[%clk 0:02:20.8]} 19. Qc3 {[%clk 0:02:10.9]} 19... Rb8 {[%clk
0:02:07.9]} 20. Rhb1 {[%clk 0:01:55.4]} 20... Qxc3 {[%clk 0:01:34.6]} 21. bxc3
{[%clk 0:01:55.7]} 21... Kd7 {[%clk 0:01:28]} 22. Ne1 {[%clk 0:01:40.8]} 22...
Rb5 {[%clk 0:01:20.9]} 23. Rxb5 {[%clk 0:01:39.3]} 23... Bxb5 {[%clk 0:01:22.8]}
24. Nc2 {[%clk 0:01:39.2]} 24... Rb8 {[%clk 0:01:17.6]} 25. Kd2 {[%clk
0:01:39.2]} 25... Kc7 {[%clk 0:01:08.3]} 26. f4 {[%clk 0:01:39.7]} 26... Kb6
{[%clk 0:01:05.5]} 27. f5 {[%clk 0:01:37.2]} 27... Nd8 {[%clk 0:01:02]} 28. Rb1
{[%clk 0:01:25.1]} 28... Ka6 {[%clk 0:00:39.3]} 29. Na3 {[%clk 0:01:24.4]} 29...
Rb7 {[%clk 0:00:29.7]} 30. Nxb5 {[%clk 0:01:24]} 30... Rxb5 {[%clk 0:00:30.7]}
31. Rxb5 {[%clk 0:01:24.5]} 31... Kxb5 {[%clk 0:00:32.6]} 32. Kc2 {[%clk
0:01:24.2]} 32... Kc6 {[%clk 0:00:21.2]} 33. fxe6 {[%clk 0:01:23.9]} 33... fxe6
{[%clk 0:00:21.2]} 34. h4 {[%clk 0:01:20.9]} 34... Kd7 {[%clk 0:00:16.5]} 35.
Kb2 {[%clk 0:01:20.3]} 35... Ke7 {[%clk 0:00:12.2]} 36. Ka3 {[%clk 0:01:19.5]}
36... Nc6 {[%clk 0:00:13.5]} 37. Ka4 {[%clk 0:01:19.8]} 37... Kf7 {[%clk
0:00:11.4]} 38. h5 {[%clk 0:01:17.4]} 38... Ke7 {[%clk 0:00:11.6]} 39. Bf3
{[%clk 0:01:05.6]} 39... Nd8 {[%clk 0:00:10.9]} 40. Kxa5 {[%clk 0:01:05.8]}
40... Nf7 {[%clk 0:00:12.3]} 41. Kb6 {[%clk 0:01:05.3]} 41... Ng5 {[%clk
0:00:13.4]} 42. Bg2 {[%clk 0:01:04.3]} 42... Ne4 {[%clk 0:00:14.6]} 43. Ka5
{[%clk 0:00:57.6]} 43... Nxc3 {[%clk 0:00:14.7]} 44. Kb4 {[%clk 0:00:58.6]}
44... Ne2 {[%clk 0:00:14.9]} 45. g4 {[%clk 0:00:53]} 45... Nxd4 {[%clk
0:00:14.7]} 46. Kc3 {[%clk 0:00:53.8]} 46... Nc6 {[%clk 0:00:15]} 47. Kc2 {[%clk
0:00:53.4]} 47... Nxe5 {[%clk 0:00:15.2]} 48. Bh3 {[%clk 0:00:51.9]} 48... Nf7
{[%clk 0:00:15.8]} 49. Bg2 {[%clk 0:00:52.1]} 49... Kf6 {[%clk 0:00:16.7]} 50.
Bf3 {[%clk 0:00:53.2]} 50... Ne5 {[%clk 0:00:16.9]} 51. Be2 {[%clk 0:00:54]}
51... Kg5 {[%clk 0:00:17.9]} 52. Kc3 {[%clk 0:00:53.4]} 52... Nxg4 {[%clk
0:00:18.8]} 53. Kd4 {[%clk 0:00:54.1]} 53... Kf4 {[%clk 0:00:17.9]} 54. Bf1
{[%clk 0:00:53]} 54... Ne3 {[%clk 0:00:17.8]} 55. Be2 {[%clk 0:00:53]} 55... e5+
{[%clk 0:00:18.3]} 56. Kc3 {[%clk 0:00:53.4]} 56... d4+ {[%clk 0:00:19.1]} 57.
Kd2 {[%clk 0:00:54.2]} 57... c3+ {[%clk 0:00:19.9]} 58. Kd3 {[%clk 0:00:51.8]}
58... Nf5 {[%clk 0:00:19.3]} 59. Kc2 {[%clk 0:00:52]} 59... e4 {[%clk
0:00:18.7]} 60. Bc4 {[%clk 0:00:52.6]} 60... Ng3 {[%clk 0:00:17.2]} 61. Ba6
{[%clk 0:00:52.4]} 61... Nxh5 {[%clk 0:00:16.2]} 62. Be2 {[%clk 0:00:52.5]}
62... Ng3 {[%clk 0:00:17.4]} 63. Ba6 {[%clk 0:00:53]} 63... h5 {[%clk
0:00:18.6]} 64. Bc8 {[%clk 0:00:51.8]} 64... h4 {[%clk 0:00:19.6]} 65. Kd1
{[%clk 0:00:53]} 65... Ke3 {[%clk 0:00:20.1]} 66. Bg4 {[%clk 0:00:52.2]} 66...
d3 {[%clk 0:00:20.8]} 67. Kc1 {[%clk 0:00:53]} 67... Kd4 {[%clk 0:00:21]} 68.
Kd1 {[%clk 0:00:53.7]} 68... e3 {[%clk 0:00:21.8]} 69. Ke1 {[%clk 0:00:54.5]}
69... c2 {[%clk 0:00:21.8]} 70. Bd1 {[%clk 0:00:54]} 70... cxd1=Q+ {[%clk
0:00:21.2]} 71. Kxd1 {[%clk 0:00:55.9]} 71... Kc3 {[%clk 0:00:20.7]} 72. Ke1
{[%clk 0:00:56.8]} 72... d2+ {[%clk 0:00:20.1]} 73. Kd1 {[%clk 0:00:57.7]} 73...
e2# {[%clk 0:00:20.5]} 0-1

[Event "*** Qualifier 1: Titled Tuesday 3|2 Blitz"]
[Site "Chess.com"]
[Date "2017.04.04"]
[Round "3"]
[White "TooOldTooSlow70"]
[Black "GeorgMeier"]
[Result "0-1"]
[WhiteElo "2267"]
[BlackElo "2712"]
[TimeControl "180+2"]
[EndTime "13:40:58 PDT"]
[Termination "GeorgMeier won by resignation"]

1. Nf3 {[%clk 0:03:02]} 1... d5 {[%clk 0:03:00.6]} 2. d4 {[%clk 0:03:01.6]} 2...
Nf6 {[%clk 0:02:58.8]} 3. c4 {[%clk 0:03:02.7]} 3... e6 {[%clk 0:02:59.7]} 4.
Nc3 {[%clk 0:03:03.6]} 4... dxc4 {[%clk 0:03:00.1]} 5. e4 {[%clk 0:02:58.8]}
5... Bb4 {[%clk 0:02:59.1]} 6. Bg5 {[%clk 0:02:57.3]} 6... h6 {[%clk 0:03:00.1]}
7. Bxf6 {[%clk 0:02:56.8]} 7... Qxf6 {[%clk 0:03:02]} 8. Bxc4 {[%clk 0:02:53.3]}
8... c5 {[%clk 0:03:01.2]} 9. O-O {[%clk 0:02:48.1]} 9... cxd4 {[%clk
0:03:02.2]} 10. Nb5 {[%clk 0:02:32.6]} 10... Qe7 {[%clk 0:03:02.9]} 11. a3
{[%clk 0:02:18.8]} 11... Bc5 {[%clk 0:03:03.1]} 12. b4 {[%clk 0:02:15.5]} 12...
Bb6 {[%clk 0:03:04.2]} 13. e5 {[%clk 0:01:54.1]} 13... O-O {[%clk 0:03:05]} 14.
Qe2 {[%clk 0:01:54]} 14... Rd8 {[%clk 0:02:59.2]} 15. Rad1 {[%clk 0:01:53.8]}
15... Bd7 {[%clk 0:02:51.4]} 16. Nbxd4 {[%clk 0:01:47.1]} 16... Nc6 {[%clk
0:02:42]} 17. Nb5 {[%clk 0:01:44.1]} 17... a5 {[%clk 0:02:41.6]} 18. Bd3 {[%clk
0:01:37.3]} 18... axb4 {[%clk 0:02:39.4]} 19. Qe4 {[%clk 0:01:36.3]} 19... g6
{[%clk 0:02:40.8]} 20. axb4 {[%clk 0:01:36.6]} 20... Nxb4 {[%clk 0:02:35.7]} 21.
Nd6 {[%clk 0:00:59.5]} 21... Nd5 {[%clk 0:02:13.4]} 22. Qg4 {[%clk 0:00:50.3]}
22... Ra4 {[%clk 0:01:33.7]} 23. Be4 {[%clk 0:00:43.4]} 23... Bc6 {[%clk
0:01:15.5]} 24. Ra1 {[%clk 0:00:22.3]} 24... h5 {[%clk 0:01:11.5]} 25. Qg5
{[%clk 0:00:18.3]} 25... Rxe4 {[%clk 0:00:26.8]} 26. Nxe4 {[%clk 0:00:18.3]}
26... Kg7 {[%clk 0:00:27]} 27. Rab1 {[%clk 0:00:14.3]} 27... Bc7 {[%clk
0:00:27.1]} 28. Qxe7 {[%clk 0:00:09]} 28... Nxe7 {[%clk 0:00:28.3]} 29. Rfe1
{[%clk 0:00:08.6]} 29... Nf5 {[%clk 0:00:25.6]} 30. Neg5 {[%clk 0:00:06.2]}
30... Rd3 {[%clk 0:00:18.9]} 31. Red1 {[%clk 0:00:07.3]} 31... Ra3 {[%clk
0:00:19.7]} 32. Ra1 {[%clk 0:00:07.2]} 32... Rb3 {[%clk 0:00:20.9]} 33. Rab1
{[%clk 0:00:08.5]} 33... Rc3 {[%clk 0:00:22.1]} 34. Rbc1 {[%clk 0:00:09.7]}
34... Ra3 {[%clk 0:00:22.6]} 35. Ra1 {[%clk 0:00:10.5]} 35... Rc3 {[%clk
0:00:20.6]} 36. Rac1 {[%clk 0:00:11.4]} 36... Rb3 {[%clk 0:00:20.3]} 37. Rb1
{[%clk 0:00:12.5]} 37... Rxb1 {[%clk 0:00:17.6]} 38. Rxb1 {[%clk 0:00:14.4]}
38... Kf8 {[%clk 0:00:19.2]} 39. h3 {[%clk 0:00:13.7]} 39... Ke7 {[%clk
0:00:18.5]} 40. Rc1 {[%clk 0:00:13.1]} 40... Bb6 {[%clk 0:00:17.3]} 41. Rb1
{[%clk 0:00:13.7]} 41... Bc5 {[%clk 0:00:17.7]} 42. Re1 {[%clk 0:00:12.1]} 42...
Nd4 {[%clk 0:00:13.7]} 43. Nxd4 {[%clk 0:00:09.6]} 43... Bxd4 {[%clk 0:00:15.6]}
44. Nf3 {[%clk 0:00:10.4]} 44... Bc3 {[%clk 0:00:12.4]} 45. Rc1 {[%clk
0:00:10.7]} 45... Bb2 {[%clk 0:00:13.6]} 46. Rb1 {[%clk 0:00:11.6]} 46... Bc3
{[%clk 0:00:14.9]} 47. Rb3 {[%clk 0:00:12.7]} 47... Ba5 {[%clk 0:00:13.6]} 48.
Nd4 {[%clk 0:00:13.8]} 48... Bd5 {[%clk 0:00:14.1]} 49. Rb5 {[%clk 0:00:14.9]}
49... Bc3 {[%clk 0:00:14.3]} 50. Nf3 {[%clk 0:00:11]} 50... Bc6 {[%clk
0:00:10.2]} 51. Rb3 {[%clk 0:00:11.4]} 51... Ba1 {[%clk 0:00:09]} 52. Rb1 {[%clk
0:00:11.3]} 52... Bc3 {[%clk 0:00:09.9]} 53. Rb3 {[%clk 0:00:12.7]} 53... Ba5
{[%clk 0:00:10.9]} 54. Nd4 {[%clk 0:00:13.3]} 54... Bd5 {[%clk 0:00:11.8]} 55.
Rb5 {[%clk 0:00:14.4]} 55... Bc7 {[%clk 0:00:12.9]} 56. Nf3 {[%clk 0:00:15]}
56... Kd7 {[%clk 0:00:13.2]} 57. Rb4 {[%clk 0:00:11.5]} 57... Bd8 {[%clk
0:00:10]} 58. Rf4 {[%clk 0:00:11]} 58... Ke8 {[%clk 0:00:10.8]} 59. Rb4 {[%clk
0:00:11]} 59... Be7 {[%clk 0:00:11.2]} 60. Rb5 {[%clk 0:00:09.9]} 60... Kd7
{[%clk 0:00:11.2]} 61. Nd4 {[%clk 0:00:08.4]} 61... Kc7 {[%clk 0:00:09.1]} 62.
Rb2 {[%clk 0:00:07.5]} 62... Bc5 {[%clk 0:00:09.6]} 63. Nb5+ {[%clk 0:00:06.8]}
63... Kd7 {[%clk 0:00:09.9]} 64. Nd6 {[%clk 0:00:03.9]} 64... Bxd6 {[%clk
0:00:05.4]} 65. exd6 {[%clk 0:00:05.8]} 65... Kxd6 {[%clk 0:00:07.1]} 66. f4
{[%clk 0:00:07]} 66... h4 {[%clk 0:00:08.1]} 67. Kf2 {[%clk 0:00:08.4]} 67...
Kc5 {[%clk 0:00:09.5]} 68. g3 {[%clk 0:00:09.1]} 68... hxg3+ {[%clk 0:00:10.3]}
69. Kxg3 {[%clk 0:00:11]} 69... b5 {[%clk 0:00:12.1]} 70. Kg4 {[%clk 0:00:12.4]}
70... f6 {[%clk 0:00:13.5]} 71. h4 {[%clk 0:00:13]} 71... b4 {[%clk 0:00:13.8]}
72. h5 {[%clk 0:00:14.3]} 72... gxh5+ {[%clk 0:00:15.3]} 73. Kxh5 {[%clk
0:00:16.2]} 73... Be4 {[%clk 0:00:16.5]} 74. Kh6 {[%clk 0:00:17.3]} 74... Kc4
{[%clk 0:00:17.6]} 75. Kg7 {[%clk 0:00:18.9]} 75... f5 {[%clk 0:00:17.6]} 76.
Kf6 {[%clk 0:00:20.4]} 76... Kc3 {[%clk 0:00:19]} 77. Rf2 {[%clk 0:00:18.4]}
77... b3 {[%clk 0:00:20.2]} 78. Kxe6 {[%clk 0:00:17]} 78... b2 {[%clk
0:00:21.7]} 0-1